Cogmind - Beta 13 @@@ ROGUE MODE // 2024.04.01 @ 12:04:54 Player: deezy Result: Destroyed by G-34 Mercenary with Small Laser Performance ------------- Evolutions (1) 500 Regions Visited (3) 600 Robots Destroyed (29) 145 Value Destroyed (812) 812 Prototype IDs (3) 60 Alien Tech Used (0) 0 Bonus (0) 0 TOTAL SCORE: 2117 Bonus ------- None Cogmind --------- Core Integrity 0/400 Matter 228/300 Energy 92/100 System Corruption 1% Temperature Cool (18) Movement Core (700) Ox13 Location -9/Storage Parts ------- > --- POWER (1) -------- (None) > --- PROPULSION (3) --- (None) > --- UTILITY (3) ------ High-capacity Storage Unit Structural Scanner Terrain Scan Processor > --- WEAPON (2) ------- (None) > --- INVENTORY (20) --- Ion Engine Ion Engine Aluminum Leg Aluminum Leg Huge Storage Unit Small Laser Particle Gun Light Assault Rifle Peak State ------------ > --- POWER ------------ Heavy Ion Engine > --- PROPULSION ------- Aluminum Leg Aluminum Leg Aluminum Leg > --- UTILITY ---------- High-capacity Storage Unit Structural Scanner Terrain Scan Processor > --- WEAPON ----------- Light Assault Rifle Scythe > --- INVENTORY -------- Ion Engine Ion Engine Aluminum Leg Aluminum Leg Huge Storage Unit Small Laser Particle Gun Grenade Launcher Datajack [Rating: 15] Favorites ----------- Power Light Ion Engine Engine Light Ion Engine Propulsion Light Treads Treads Light Treads Leg Aluminum Leg Utility High-capacity Storage Unit Device Structural Scanner Storage High-capacity Storage Unit Processor Terrain Scan Processor Protection Core Shielding Weapon Light Assault Rifle Energy Gun Particle Gun Ballistic Gun Light Assault Rifle Launcher Grenade Launcher Impact Weapon Mace Slashing Weapon Scythe Special Melee Weapon Datajack Build | -11 -10 -9 -9 ------- Run | Yrd Mat Mat Sto Slots Evolved 2 | . . 2 . Power . | . . . . Propulsion 1 | . . 1 . Utility 1 | . . 1 . Weapon . | . . . . Parts Attached 27 | 2 12 8 5 Power 3 | . 1 1 1 Engine 3 | . 1 1 1 Core . | . . . . Reactor . | . . . . Propulsion 7 | 2 1 4 . Treads 4 | 2 1 1 . Leg 3 | . . 3 . Wheel . | . . . . Hover . | . . . . Flight . | . . . . Utility 5 | . 4 1 . Device 1 | . 1 . . Storage 2 | . 2 . . Processor 1 | . . 1 . Hackware . | . . . . Protection 1 | . 1 . . Artifact . | . . . . Weapon 12 | . 6 2 4 Energy Gun 3 | . 2 1 . Energy Cannon . | . . . . Ballistic Gun 2 | . 2 . . Ballistic Cannon . | . . . . Launcher 4 | . 1 1 2 Special Weapon . | . . . . Impact Weapon 1 | . 1 . . Slashing Weapon 1 | . . . 1 Piercing Weapon . | . . . . Special Melee Weapon 1 | . . . 1 Unidentified Prototypes . | . . . . Parts Lost 11 | . 3 1 7 Power 3 | . 1 1 1 Propulsion 3 | . . . 3 Utility . | . . . . Weapon 5 | . 2 . 3 Highest Loss Streak 7 | . 2 1 7 To Critical Strikes . | . . . . Average Slot Usage (%) 91 | . 94 86 96 Engine 12 | . 13 11 11 Treads 20 | . 28 20 . Leg 8 | . . 9 30 Device 6 | . 1 11 11 Storage 12 | . 14 11 11 Processor 2 | . . 1 11 Protection 3 | . 9 . . Energy Gun 8 | . 6 10 5 Ballistic Gun 12 | . 15 11 8 Launcher 2 | . 5 . 4 Naked Turns . | . . . . Heaviest Build 89 | 12 89 48 54 Greatest Support 60 | 40 40 60 30 Greatest Overweight (x) 16 | . 2 1 16 Average Overweight (x) . | . 1 . 1 Largest Inventory Capacity 25 | 8 25 20 20 Average Capacity 19 | 8 19 20 20 Most Carried 10 | 6 8 10 10 Average Carried 6 | 6 5 7 8 Final Capacity 20 | 8 20 20 20 Final Carried 9 | 6 8 9 8 Class Distribution -------------------- 100% | Mutant Dominant Class ---------------- Mutant | -10/Materials Mutant | -9/Materials Mutant | -9/Storage Resources | -11 -10 -9 -9 ----------- Run | Yrd Mat Mat Sto Matter Collected 558 | 220 143 173 22 Remotely . | . . . . Salvage Created 809 | . 288 352 169 Parts 50 | . 18 19 13 Haulers Intercepted . | . . . . Recyclers Shooed . | . . . . Parts Field Recycled . | . . . . Retrieved Matter . | . . . . Parts Self-Destructed . | . . . . Prevented . | . . . . Kills | -11 -10 -9 -9 ------- Run | Yrd Mat Mat Sto Combat Hostiles Destroyed 25 | . 7 9 9 Melee 1 | . . . 1 Guns 14 | . 5 7 2 AOE 10 | . 2 2 6 Classes Destroyed 6 | . 3 2 1 Worker 1 | . . 1 . Builder 1 | . . . 1 Watcher 2 | . 2 . . Swarmer 6 | . 2 . 4 Grunt 17 | . 5 7 5 Sentry 2 | . . 2 . Best Kill Streak 4 | . 3 3 4 Combat Bots Only 4 | . 3 3 4 Max Kills in Single Turn 2 | . 2 1 2 Gunslinging . | . . . . Exploded 2 | . 2 1 2 Melee 1 | . . . 1 Uniques/NPCs Destroyed . | . . . . Combat | -11 -10 -9 -9 -------- Run | Yrd Mat Mat Sto Hostile Shots Fired 206 | . 59 43 104 Missed 60 | . 18 14 28 Damage Taken 1818 | . 511 377 930 Core 496 | . 92 69 335 Absorbed by Shields . | . . . . Redirected to Shielding 4 | . 4 . . Core Remaining (%) 81 | 100 63 . . Volleys Fired 67 | . 26 23 18 Largest 2 | . 2 2 2 Hottest 85 | . 60 85 85 Shots Fired 111 | . 47 44 20 Gun 101 | . 46 42 13 Cannon . | . . . . Launcher 10 | . 1 2 7 Special . | . . . . Kinetic 73 | . 41 21 11 Thermal 23 | . . 21 2 Explosive 10 | . 1 2 7 Electromagnetic 5 | . 5 . . Robot Hit Streak 11 | . 6 11 4 Robot Miss Streak 4 | . 4 2 1 Penetration Max . | . . . . Secondary Targets 2 | . 2 . . Max Gunslinging Chain 1 | . 1 . . Shots Hit Robots 68 | . 29 27 12 Core Hits 46 | . 13 19 14 Critical Kills . | . . . . Critical Parts Destroyed 1 | . 1 . . Critical Strikes 3 | . 1 2 . Burn 2 | . . 2 . Destroy 1 | . 1 . . Melee Attacks 3 | . . . 3 Impact . | . . . . Slashing 3 | . . . 3 Piercing . | . . . . Sneak Attacks . | . . . . Combat Hostiles . | . . . . Follow-up Attacks . | . . . . Damage Inflicted 1508 | . 423 415 670 Guns 727 | . 333 310 84 Cannons . | . . . . Explosions 689 | . 90 105 494 Melee 91 | . . . 91 Ramming 1 | . . . 1 Kinetic 429 | . 265 98 66 Thermal 230 | . . 212 18 Explosive 689 | . 90 105 494 Electromagnetic 68 | . 68 . . Impact . | . . . . Slashing 91 | . . . 91 Piercing . | . . . . Highest Corruption 1 | . . . 1 Average Corruption 1 | . . . 1 Corruption Purged . | . . . . Corruption Blocked . | . . . . Overload Shots . | . . . . Overflow Damage 12 | . . . 12 Projectiles . | . . . . Explosions 12 | . . . 12 Melee . | . . . . Knockbacks . | . . . . Impact . | . . . . Kinetic . | . . . . Secondary . | . . . . Self-Inflicted Damage . | . . . . Shots . | . . . . Rammed 1 | . . . 1 Targets Rammed 1 | . . . 1 Kicked . | . . . . Crushed . | . . . . Highest Temperature 143 | . 15 143 86 Average Temperature 42 | . 7 52 27 Received Heat Transfer 789 | . 189 168 432 Siege Activations . | . . . . Robots Corrupted . | . . . . Combat Hostiles . | . . . . Parts Fried . | . . . . Impact Corruptions . | . . . . Robots Melted . | . . . . Combat Hostiles . | . . . . Parts Melted 4 | . . 4 . Heat Transferred 703 | . . 666 37 Parts Sabotaged . | . . . . Parts Stolen . | . . . . Parts Stripped . | . . . . Power Chain Reactions . | . . . . Alert | -11 -10 -9 -9 ------- Run | Yrd Mat Mat Sto Peak Influence 292 | . 209 176 292 Initial 31 | . . . 31 Average 74 | . 70 62 130 Maximum Alert Level 1 | . 1 . 1 Low Security (%) 94 | 100 92 100 80 Level 1 5 | . 7 . 20 Level 2 . | . . . . Level 3 . | . . . . Level 4 . | . . . . Level 5 . | . . . . High Security . | . . . . Max Security . | . . . . Squads Dispatched 5 | . 2 1 2 Investigation 2 | . . 1 1 Extermination . | . . . . Reinforcement 3 | . 2 . 1 Assault . | . . . . Garrison . | . . . . Intercept . | . . . . Searches Triggered . | . . . . Construction Impeded 1 | . . . 1 Haulers Reinforced . | . . . . Active Scanning Responses . | . . . . Cargo Convoy Interrupts . | . . . . Stealth | -11 -10 -9 -9 --------- Run | Yrd Mat Mat Sto Distress Signals 3 | . . 2 1 Communications Jammed . | . . . . Distress Signals . | . . . . Times Spotted 46 | . 14 12 20 Peak Tracking Total 8 | . 3 3 8 Tactical Retreats 1 | . 1 . . Traps | -11 -10 -9 -9 ------- Run | Yrd Mat Mat Sto Traps Triggered . | . . . . Indirectly . | . . . . Trap Hack Attempts . | . . . . Triggered . | . . . . Disarmed . | . . . . Reprogrammed . | . . . . Reused . | . . . . Traps Extracted . | . . . . Installed . | . . . . Triggered . | . . . . Machines | -11 -10 -9 -9 ---------- Run | Yrd Mat Mat Sto Machines Disabled 2 | . . 1 1 Max in Single Turn 1 | . . 1 1 Machines Repaired . | . . . . Machines Dismantled . | . . . . Machines Sabotaged . | . . . . Overloaded Fab Kills . | . . . . Hacking | -11 -10 -9 -9 --------- Run | Yrd Mat Mat Sto Machines Accessed 7 | . 1 5 1 Terminals 5 | . . 4 1 Fabricators . | . . . . Repair Stations . | . . . . Recycling Units 1 | . 1 . . Scanalyzers 1 | . . 1 . Garrison Access . | . . . . Total Hacks 27 | . 1 19 7 Successful 18 | . 1 14 3 Failed 9 | . . 5 4 Catastrophic 2 | . . 1 1 Database Lockouts . | . . . . Manual 8 | . 1 7 . Terminals 19 | . . 12 7 Fabricators . | . . . . Repair Stations . | . . . . Recycling Units 1 | . 1 . . Scanalyzers 7 | . . 7 . Garrison Access . | . . . . Terminal Hacks 10 | . . 7 3 Record 2 | . . 2 . Part Schematic 1 | . . . 1 Prototype ID Bank 1 | . . 1 . Branch Access Points 1 | . . . 1 Locate Traps 2 | . . 1 1 Patrol Status 1 | . . 1 . Hauler Manifests 1 | . . 1 . Zone Layout 1 | . . 1 . Fabricator Hacks . | . . . . Repair Station Hacks . | . . . . Recycling Unit Hacks 1 | . 1 . . Report Inventory 1 | . 1 . . Scanalyzer 7 | . . 7 . Insert Component 4 | . . 4 . Analyze 3 | . . 3 . Garrison Access Hacks . | . . . . Unauthorized Hacks . | . . . . Terminals . | . . . . Fabricators . | . . . . Repair Stations . | . . . . Recycling Units . | . . . . Scanalyzers . | . . . . Garrison Access . | . . . . Data Cores Recovered . | . . . . Used . | . . . . Hacking Detections 5 | . 1 3 1 Full Trace Events 2 | . . 1 1 Feedback Events 1 | . . . 1 Corruption 1 | . . . 1 Feedback Blocked . | . . . . Robot Schematics Acquired . | . . . . Robots Built . | . . . . Authchips . | . . . . Time . | . . . . Total Robot Build Rating . | . . . . Part Schematics Acquired 3 | . . 2 1 Parts Built . | . . . . Authchips . | . . . . Time . | . . . . Total Part Build Rating . | . . . . Parts Repaired . | . . . . Time . | . . . . Parts Recycled . | . . . . Recycled Matter . | . . . . Retrieved Matter . | . . . . Retrieved Components . | . . . . Parts Scanalyzed 3 | . . 3 . Part Schematics Acquired 2 | . . 2 . Parts Damaged 1 | . . 1 . Bothacking | -11 -10 -9 -9 ------------ Run | Yrd Mat Mat Sto Used RIF Installer . | . . . . Robots Hacked . | . . . . Non-combat . | . . . . Combat . | . . . . Robot Hacks Applied . | . . . . Relay Couplers Released . | . . . . Fabnet Peak Effective % . | . . . . Robots Rewired . | . . . . Allies Hacked . | . . . . Hacks Repelled . | . . . . Allies | -11 -10 -9 -9 -------- Run | Yrd Mat Mat Sto Total Allies . | . . . . Largest Group . | . . . . Highest-Rated Group . | . . . . Highest-Rated Ally . | . . . . Total Orders . | . . . . Ally Attacks . | . . . . Total Damage . | . . . . Kills . | . . . . Allies Corrupted . | . . . . Allies Melted . | . . . . Intel | -11 -10 -9 -9 ------- Run | Yrd Mat Mat Sto Robot Analysis Total . | . . . . Derelict Logs Recovered . | . . . . Drone Launches . | . . . . Drone Recoveries . | . . . . Exploration | -11 -10 -9 -9 ------------- Run | Yrd Mat Mat Sto Turns Passed 2007 | 15 816 916 260 Spaces Moved 843 | 9 289 443 102 Core 1 | . . . 1 Treads 615 | 6 289 320 . Legs 227 | 3 . 123 101 Wheels . | . . . . Hover . | . . . . Flight . | . . . . Fastest Speed 120 | 120 160 160 190 Average Speed 209 | 146 248 187 199 Slowest Speed 850 | 160 320 240 850 Overloaded Moves . | . . . . Propulsion Burnouts . | . . . . Robots Hopped . | . . . . Cave-ins Triggered . | . . . . Exploration Rate (%) 30 | 2 48 42 28 Regions Visited 3 Branch Regions 1 Pre-discovered Areas . | . . . . Known Exits Taken . | . . . . Unknown Exits Taken 3 | 1 1 1 . Scrap Searched . | . . . . Spaces Dug . | . . . . Terrain Destroyed 66 | . 9 7 50 Melee . | . . . . Projectile . | . . . . AOE 66 | . 9 7 50 Terrain Rammed . | . . . . Walls Destroyed . | . . . . Machines Disabled . | . . . . Actions | -11 -10 -9 -9 --------- Run | Yrd Mat Mat Sto Total 977 | 10 343 489 135 Wait . | . . . . Move 840 | 8 288 442 102 Hop . | . . . . Pick Up 24 | . 11 10 3 Fast Attach . | . . . . Attach 9 | . 5 3 1 Detach 1 | . 1 . . Swap 18 | 2 7 5 4 Drop 14 | . 5 6 3 Fire 67 | . 26 23 18 Melee 3 | . . . 3 Ram 1 | . . . 1 Kick . | . . . . Crush . | . . . . Escape Stasis . | . . . . Rewire . | . . . . Trap . | . . . . Miscellaneous . | . . . . Route ------- -11/Scrapyard -10/Materials (discovered 2 exits: *Mat x2) -9/Materials (discovered 2 exits: [*Mat] / *Sto) -9/Storage (discovered 1 exit: Rec) History --------- Turn | Location | Event 1 | -11/Scrapyard | Discovered new exit (range 3) 16 | -11/Scrapyard | Entered Materials 315 | -10/Materials | Build established: Mutant 451 | -10/Materials | Discovered new exit (range 4) 813 | -10/Materials | Discovered new exit (range 11) 832 | -10/Materials | Entered another Materials area 832 | -9/Materials | Evolved 2 slots: Propulsion x1, Utility x1 1192 | -9/Materials | Discovered new exit (range 5) 1720 | -9/Materials | Discovered new exit (range 5) 1748 | -9/Materials | Entered Storage 1854 | -9/Storage | Identified exit to Recycling 1994 | -9/Storage | Core integrity fell below 50% 2004 | -9/Storage | Core integrity fell below 20% 2008 | -9/Storage | Destroyed by G-34 Mercenary with Small Laser Last Messages --------------- 01958_ ALERT: Construction progress impeded, dispatching reinforcements to local area. 01961_ K-01 Serf collects debris. 01964_ U-05 Engineer lays Concrete. 01965_ U-05 Engineer builds a Wall. 01966_ K-01 Serf collects debris. 01969_ U-05 Engineer lays Concrete. 01973_ R-06 Scavenger collects Flight Unit. 01974_ K-01 Serf collects debris. 01985_ Aluminum Leg destroyed. 01987_ Grenade Launcher destroyed. 01988_ Aluminum Leg destroyed. 01990_ G-34 Mercenary destroyed. 01995_ Aluminum Leg destroyed. 02004_ Scythe destroyed. 02004_ Hvy. Ion Engine destroyed. 02004_ R-06 Scavenger collects Aluminum Leg. 02006_ Datajack destroyed. 02006_ Slammed into G-34 Mercenary. 02007_ R-06 Scavenger collects Heat Sink. Map ----- +----------------------------------------------------+ | ?????????????????????????????????????????????????? | | ?????????????????????????????????????????????????? | | ?????????????????????????????????????????????????? | | ?????????????????????????????????????????????????? | | ?????????????????????????????????????????????????? | | ?????????????????????????????????????????????????? | | ?????????????????????????????????????????????????? | | ?????????????????????????????????????????????????? | | ?????????????????????????????????????????????????? | | ?????????????????????????????????????????????????? | | ?????????????????????????????????????????????????? | | ??????????????????????????? ##?????????????????? | | ??????????????????????????? ##?????????????????? | | ??????????????????????????? ##?????????????????? | | ?????????????????????????## ##?????????????????? | | ?????????????????????????## ##?????????????????? | | ?????????????????????????## ##?????????????????? | | ?????????????????????????## ##??????###????????? | | ?????????????????????????## # ?????? ##????????? | | ?????????????????????????"" # ?????? ##????????? | | ??????????????????????????T # ?????? ##????????? | | ?????????????????????####"" # ?????? ##????????? | | ????????????????########### # """""" ##????????? | | ????????????????#######Y### m# ######????? | | ????????????????## # # #######???? | | ????????????????##""" g @g + ## " ##???? | | ????????????????##"R /ggr#gY # ##"G"###### | | ????????????????##""" !! # ### # " "###### | | ???????????????? + !! # #### % | | ????????????????## # #### | | ????????????????## # = * ? | | ????????????????## ######## %% ## ##????? | | ????????????????## ######### # #####????? | | ????????????????######+#####????### #####??????? | | ????????????????###### #####???#### # ##??????? | | ???????????????????????????????#### # ###??????? | | ???????????????????????????????## # # ##??????? | | ???????????????????????????????## #% # ###?????## | | ???????????????????????????????#### # ##""R"### | | ????????????????????????????????### ## ##"" "### | | ????????????????????????????????### % ## # | | ????????????????????????????????### ## """" # | | ????????????????????????????????### ## """" # | | ????????????????????????????????### # """" # | | ????????????????????????????????### ## """" # | | ????????????????????????????????### ## # | | ????????????????????????????????### ## # | | ???????????????????????????????? ## ## # | | ???????????????????????????????? # ####+###### | | ???????????????????????????????" # | +----------------------------------------------------+ Best States ------------- Heat Dissipation 28 Energy Generation 14 Energy Capacity 280 Matter Stores 300 Matter Capacity 300 Sight Range 16 Terrain Scan Density 85 Core Shielding 20 Evasion (%) 40 Recoil Reduction 3 Item Schematics ----------------- Hvy. Ion Engine | -9/Materials | Scanalyzed Imp. Ion Engine | -9/Materials | Scanalyzed System Restoration Module | -9/Storage | Hacked Robot Schematics ------------------ None Fabricated ------------ Nothing Alien Tech Used ----------------- None Achievements -------------- None Challenges ------------ None Game ------ Seed ChargeSystemCycler Manual? 0 Play Time 00:31:39 Cumulative 7.5 hours Start 2024.04.01 @ 11:33:02 End 2024.04.01 @ 12:04:54 Sessions 1 Manual Loads 0 Difficulty Rogue Special Mode None Game No. 20 Rogue 20 Adventurer 0 Explorer 0 Win Type - Total 0 Types 0/0/0/0/0/0/0/0/0 Lore% 16 Gallery% 11 Achievement% 14 Wizard Run 0 Options --------- Layout 2 ASCII 0 Keyboard 1 Movement Numpad Keybinds 0 Fullscreen 2 Font 32/SmallcapsGlow Map View 50x44 Zoom Use 0% Tactical HUD 1 Map Filters NONE Filters NONE Steam 1 RUN: b3bcf792-a5dc-4aac-a457-ae2abb01edad